bitfinex-derivatives/quotes_BNBF0:USTF0_20250630
["timestamp","ask_amount","ask_price","bid_price","bid_amount"]
[1751260927589,0.26534098,656.5,655.46,1.66909505]
[1751260927796,0.26534098,656.5,655.4,2.528]
[1751260927797,0.26534098,656.5,655.47,1.66909505]
[1751260927986,0.26534098,656.5,655.48,1.1086656]
[1751260928186,0.26534098,656.5,655.49,1.1086656]
[1751260928487,0.26534098,656.5,655.5,1.1086656]
[1751260928690,0.26534098,656.5,655.51,1.1086656]
[1751260928986,0.26534098,656.5,655.52,1.1086656]
[1751260929186,0.26534098,656.5,655.53,1.1086656]
[1751260929389,0.26534098,656.5,655.4,2.528]
[1751260929589,0.26534098,656.5,655.41,1.66907071]
[1751260929789,0.26534098,656.5,655.42,1.66907071]
[1751260930089,0.26534098,656.5,655.43,1.66907071]
[1751260930284,0.26534098,656.5,655.4,2.528]
[1751260930285,0.26534098,656.5,655.44,1.66907071]
[1751260930490,0.26534098,656.5,655.45,1.66907071]
[1751260930686,0.26534098,656.5,655.46,1.66907071]
[1751260930887,0.26534098,656.5,655.47,1.66907071]
[1751260931089,0.26534098,656.5,655.48,1.1086341]
[1751260931292,0.26534098,656.5,655.49,1.1086341]
[1751260931492,0.26534098,656.5,655.5,1.1086341]
[1751260931792,0.26534098,656.5,655.51,1.1086341]
[1751260932087,0.26534098,656.5,655.52,1.1086341]
[1751260932289,0.26534098,656.5,655.53,1.1086341]
[1751260932491,0.26534098,656.5,655.4,2.528]
[1751260932691,0.26534098,656.5,655.41,1.66920467]
[1751260932889,0.26534098,656.5,655.42,1.66920467]
[1751260933090,0.26534098,656.5,655.43,1.66920467]
[1751260933288,0.26534098,656.5,655.44,1.66920467]
[1751260933492,0.26534098,656.5,655.45,1.66920467]
[1751260933690,0.26534098,656.5,655.46,1.66920467]
[1751260933889,0.26534098,656.5,655.47,1.66920467]
[1751260934094,0.26534098,656.5,655.48,1.1087385]
[1751260934293,0.26534098,656.5,655.49,1.1087385]
[1751260934592,0.26534098,656.5,655.5,1.1087385]
[1751260934796,0.26534098,656.5,655.51,1.1087385]
[1751260934989,0.26534098,656.5,655.52,1.1087385]
[1751260935193,0.26534098,656.5,655.53,1.1087385]
[1751260935393,0.26534098,656.5,655.54,1.1087385]
[1751260935598,0.26534098,656.5,655.4,2.528]
[1751260935792,0.26534098,656.5,655.41,1.66940273]
[1751260936092,0.26534098,656.5,655.42,1.66940273]
[1751260936290,0.26534098,656.5,655.43,1.66940273]
[1751260936590,0.26534098,656.5,655.44,1.66940273]
[1751260936790,0.26534098,656.5,655.45,1.66940273]
[1751260936991,0.26534098,656.5,655.46,1.66940273]
[1751260937189,0.26534098,656.5,655.47,1.1088808]
[1751260937390,0.26534098,656.5,655.48,1.1088808]
[1751260937594,0.26534098,656.5,655.49,1.1088808]
[1751260937892,0.26534098,656.5,655.5,1.1088808]
[1751260938091,0.26534098,656.5,655.51,1.1088808]
[1751260938292,4.04616818,656.5,655.52,1.1088808]
[1751260938593,4.04616818,656.5,655.53,1.1088808]
[1751260938791,4.04616818,656.5,655.54,1.1088808]
[1751260938995,4.04616818,656.5,655.4,2.528]
[1751260939192,4.04616818,656.5,655.41,1.66982348]
[1751260939491,4.04616818,656.5,655.42,1.66982348]
[1751260939691,4.04616818,656.5,655.43,1.66982348]
[1751260939891,4.04616818,656.5,655.44,1.10919976]
[1751260940093,4.04616818,656.5,655.45,1.10919976]
[1751260940292,4.04616818,656.5,655.46,1.10919976]
[1751260940495,4.04616818,656.5,655.47,1.10919976]
[1751260940696,4.04616818,656.5,655.48,1.10919976]
[1751260940893,3.7808272,656.49,655.49,1.10919976]
[1751260941092,3.7808272,656.49,655.5,1.10919976]
[1751260941396,3.7808272,656.47,655.51,1.10919976]
[1751260941597,3.7808272,656.47,655.52,1.10919976]
[1751260941794,3.7808272,656.47,655.29,1.1401384]
[1751260941993,3.7808272,656.47,655.3,1.67009079]
[1751260942293,3.7808272,656.47,655.31,1.67009079]
[1751260942494,3.7808272,656.47,655.32,1.67009079]
[1751260942693,3.7808272,656.47,655.33,1.67009079]
[1751260942893,3.7808272,656.47,655.34,1.67009079]
[1751260943096,3.7808272,656.47,655.35,1.67009079]
[1751260943294,3.7808272,656.47,655.36,1.67009079]
[1751260943494,3.7808272,656.47,655.37,1.67009079]
[1751260943695,3.7808272,656.47,655.38,1.67009079]
[1751260943895,3.7808272,656.47,655.39,1.67009079]
[1751260944095,3.7808272,656.47,655.4,1.67009079]
[1751260944298,3.7808272,656.47,655.41,1.67009079]
[1751260944497,3.7808272,656.47,655.42,1.67009079]
[1751260944696,3.7808272,656.47,655.43,1.67009079]
[1751260944897,3.7808272,656.47,655.44,1.1093279]
[1751260945100,3.7808272,656.43,655.45,1.1093279]
[1751260945297,3.7808272,656.43,655.46,1.1093279]
[1751260945600,3.7808272,656.41,655.47,1.1093279]
[1751260945899,3.7808272,656.41,655.48,1.1093279]
[1751260946100,3.7808272,656.39,655.49,1.1093279]
[1751260946398,3.7808272,656.39,655.5,1.1093279]
[1751260946597,3.7808272,656.4,655.51,1.1093279]
[1751260946798,3.7808272,656.4,655.52,1.1093279]
[1751260947000,3.7808272,656.4,655.41,2.629]
[1751260947297,0.26534098,656.5,655.42,1.66997026]
[1751260947298,3.7808272,656.39,655.42,1.66997026]
[1751260947498,3.7808272,656.39,655.43,1.66997026]
[1751260947697,3.7808272,656.37,655.44,1.66997026]
[1751260947899,3.7808272,656.37,655.45,1.66997026]
[1751260948101,3.7808272,656.37,655.46,1.66997026]
[1751260948400,3.7808272,656.37,655.47,1.1092463]
[1751260948601,3.7808272,656.37,655.48,1.1092463]
[1751260948899,3.7808272,656.37,655.49,1.1092463]
[1751260949096,3.7808272,656.37,655.5,1.1092463]
[1751260949296,3.7808272,656.37,655.51,1.1092463]
[1751260949497,3.7808272,656.37,655.52,1.1092463]
[1751260949796,3.7808272,656.37,655.41,2.629]
[1751260950101,3.7808272,656.37,655.42,1.66999073]
[1751260950299,3.7808272,656.37,655.43,1.66999073]
[1751260950498,3.7808272,656.37,655.44,1.66999073]
[1751260950698,3.7808272,656.36,655.45,1.66999073]
[1751260950998,3.7808272,656.36,655.46,1.1092162]
[1751260951198,3.7808272,656.39,655.47,1.1092162]
[1751260951398,3.7808272,656.39,655.48,1.1092162]
[1751260951602,3.7808272,656.39,655.49,1.1092162]
[1751260951799,3.7808272,656.38,655.5,1.1092162]
[1751260952103,3.7808272,656.38,655.51,1.1092162]
[1751260952298,3.7808272,656.38,655.41,2.629]
[1751260952299,3.7808272,656.38,655.52,1.1092162]
[1751260952602,3.7808272,656.38,655.53,1.1092162]
[1751260952802,3.7808272,656.38,655.54,1.1092162]
[1751260953000,3.7808272,656.38,655.55,1.1092162]
[1751260953203,3.7808272,656.38,655.41,2.629]
[1751260953404,3.7808272,656.38,655.42,1.67008718]
[1751260953604,3.7808272,656.38,655.43,1.67008718]
[1751260953800,3.7808272,656.38,655.41,2.629]
[1751260953801,3.7808272,656.38,655.44,1.67008718]
[1751260954004,3.7808272,656.38,655.45,1.67008718]
[1751260954205,3.7808272,656.38,655.46,1.1092857]
[1751260954405,3.7808272,656.39,655.47,1.1092857]
[1751260954705,3.7808272,656.39,655.48,1.1092857]
[1751260954900,3.7808272,656.36,655.49,1.1092857]
[1751260955104,3.7808272,656.36,655.5,1.1092857]
[1751260955304,3.7808272,656.36,655.51,1.1092857]
[1751260955505,3.7808272,656.36,655.52,1.1092857]
[1751260955704,3.7808272,656.36,655.53,1.1092857]
[1751260955999,3.7808272,656.35,655.54,1.1092857]
[1751260956205,3.7808272,656.35,655.41,2.629]
[1751260956400,3.7808272,656.35,655.42,1.67004911]
[1751260956603,3.7808272,656.35,655.43,1.67004911]
[1751260956802,3.7808272,656.35,655.44,1.67004911]
[1751260957004,3.7808272,656.35,655.45,1.67004911]
[1751260957202,3.7808272,656.35,655.46,1.1092587]
[1751260957506,3.7808272,656.35,655.47,1.1092587]
[1751260957705,3.7808272,656.35,655.48,1.1092587]
[1751260957901,3.7808272,656.35,655.49,1.1092587]
[1751260958101,3.7808272,656.35,655.5,1.1092587]
[1751260958402,3.7808272,656.35,655.51,1.1092587]
[1751260958601,3.7808272,656.35,655.52,1.1092587]
[1751260958902,3.7808272,656.35,655.53,1.1092587]
[1751260959101,3.7808272,656.41,655.54,1.1092587]
[1751260959306,3.7808272,656.41,655.41,2.629]
[1751260959506,3.7808272,656.41,655.42,1.67002666]
[1751260959710,3.7808272,656.41,655.43,1.67002666]
[1751260960010,3.7808272,656.41,655.44,1.67002666]
[1751260960304,3.7808272,656.41,655.45,1.67002666]
[1751260960504,3.7808272,656.41,655.46,1.1092411]
[1751260960706,3.7808272,656.41,655.41,2.629]
[1751260960707,3.7808272,656.41,655.47,1.1092411]
[1751260960908,3.7808272,656.41,655.48,1.1092411]
[1751260961105,3.7808272,656.41,655.49,1.1092411]
[1751260961304,3.7808272,656.41,655.5,1.1092411]
[1751260961509,3.7808272,656.41,655.51,1.1092411]
[1751260961710,3.7808272,656.4,655.52,1.1092411]
[1751260961910,3.7808272,656.4,655.53,1.1092411]
[1751260962206,3.7808272,656.49,655.54,1.1092411]
[1751260962507,3.7808272,656.49,655.34,2.849]
[1751260962807,3.7808272,656.49,655.35,1.6700502]
[1751260963009,3.7808272,656.49,655.36,1.6700502]
[1751260963310,3.7808272,656.49,655.37,1.6700502]
[1751260963509,3.7808272,656.49,655.38,1.6700502]
[1751260963810,0.26534098,656.5,655.39,1.6700502]
[1751260964004,0.26534098,656.5,655.34,2.849]
[1751260964005,0.26534098,656.5,655.4,1.6700502]
[1751260964209,0.26534098,656.5,655.41,1.6700502]
[1751260964405,0.26534098,656.5,655.42,1.6700502]
[1751260964605,0.26534098,656.5,655.43,1.6700502]
[1751260964908,0.26534098,656.5,655.44,1.6700502]
[1751260965107,0.26534098,656.5,655.45,1.6700502]
[1751260965308,0.26534098,656.5,655.46,1.6700502]
[1751260965508,0.26534098,656.5,655.47,1.6700502]
[1751260965706,0.26534098,656.5,655.48,1.1092389]
[1751260965909,0.26534098,656.5,655.49,1.1092389]
[1751260966108,0.26534098,656.5,655.5,1.1092389]
[1751260966311,0.26534098,656.5,655.51,1.1092389]
[1751260966506,0.26534098,656.5,655.52,1.1092389]
[1751260966706,0.26534098,656.5,655.53,1.1092389]
[1751260966912,0.26534098,656.5,655.54,1.1092389]
[1751260967113,0.26534098,656.5,655.55,1.1092389]
[1751260967412,0.26534098,656.5,655.4,3.589]
[1751260967609,0.26534098,656.5,655.41,1.67044234]
[1751260967807,0.26534098,656.5,655.42,1.67044234]
[1751260968012,0.26534098,656.5,655.43,1.67044234]
[1751260968211,0.26534098,656.5,655.44,1.67044234]
[1751260968411,0.26534098,656.5,655.45,1.67044234]
[1751260968713,0.26534098,656.5,655.46,1.67044234]
[1751260968915,3.7808272,656.48,655.47,1.109517]
[1751260969214,3.7808272,656.48,655.48,1.109517]
[1751260969413,3.7808272,656.49,655.49,1.109517]
[1751260969612,3.7808272,656.49,655.5,1.109517]
[1751260969815,3.7808272,656.49,655.51,1.109517]
[1751260970012,3.7808272,656.49,655.52,1.109517]
[1751260970218,3.7808272,656.49,655.53,1.109517]
[1751260970415,3.7808272,656.49,655.54,1.109517]
[1751260970619,0.26534098,656.5,655.55,1.109517]
[1751260970821,0.26534098,656.5,655.4,3.589]
[1751260971016,0.26534098,656.5,655.41,1.6705658]
[1751260971318,0.26534098,656.5,655.42,1.6705658]
[1751260971516,0.26534098,656.5,655.43,1.6705658]
[1751260971717,0.26534098,656.5,655.44,1.6705658]
[1751260972018,0.26534098,656.5,655.45,1.6705658]
[1751260972218,0.26534098,656.5,655.46,1.6705658]
[1751260972418,0.26534098,656.5,655.47,1.6705658]
[1751260972618,0.26534098,656.5,655.48,1.1096193]
[1751260972822,0.26534098,656.5,655.49,1.1096193]
[1751260973018,0.26534098,656.5,655.5,1.1096193]
[1751260973321,0.26534098,656.5,655.51,1.1096193]
[1751260973520,0.26534098,656.5,655.52,1.1096193]
[1751260973718,0.26534098,656.5,655.53,1.1096193]
[1751260974021,0.26534098,656.5,655.54,1.1096193]
[1751260974222,0.26534098,656.5,655.4,3.589]
[1751260974421,0.26534098,656.5,655.41,1.67086336]
[1751260974621,0.26534098,656.5,655.42,1.67086336]
[1751260974823,0.26534098,656.5,655.43,1.67086336]
[1751260975119,0.26534098,656.5,655.44,1.67086336]
[1751260975318,0.26534098,656.5,655.45,1.67086336]
[1751260975624,0.26534098,656.5,655.46,1.67086336]
[1751260975819,0.26534098,656.5,655.47,1.67086336]
[1751260976023,0.26534098,656.5,655.48,1.67086336]
[1751260976321,0.26534098,656.5,655.49,1.1098852]
[1751260976622,0.26534098,656.5,655.5,1.1098852]
[1751260976823,0.26534098,656.5,655.51,1.1098852]
[1751260977120,0.26534098,656.5,655.52,1.1098852]
[1751260977423,0.26534098,656.5,655.53,1.1098852]
[1751260977720,0.26534098,656.5,655.54,1.1098852]
[1751260977921,0.26534098,656.5,655.55,1.1098852]
[1751260978120,0.26534098,656.5,655.4,3.589]
[1751260978320,0.26534098,656.5,655.41,1.67097472]
[1751260978520,0.26534098,656.5,655.42,1.67097472]
[1751260978720,0.26534098,656.5,655.43,1.67097472]
[1751260978923,0.26534098,656.5,655.44,1.67097472]
[1751260979221,0.26534098,656.5,655.45,1.67097472]
[1751260979422,0.26534098,656.5,655.46,1.67097472]
[1751260979625,0.26534098,656.5,655.47,1.67097472]
[1751260979925,0.26534098,656.5,655.48,1.67097472]
[1751260980119,0.26534098,656.5,655.49,1.67097472]
[1751260980320,0.26534098,656.5,655.5,1.67097472]
[1751260980522,0.26534098,656.5,655.51,1.1099496]
[1751260980722,0.26534098,656.5,655.52,1.1099496]
[1751260980922,0.26534098,656.5,655.53,1.1099496]
[1751260981126,0.26534098,656.5,655.54,1.1099496]
[1751260981326,0.26534098,656.5,655.55,1.1099496]
[1751260981526,0.26534098,656.5,655.4,3.589]
[1751260981724,0.26534098,656.5,655.41,1.67115913]
[1751260982027,0.26534098,656.5,655.42,1.67115913]
[1751260982225,0.26534098,656.5,655.43,1.67115913]
[1751260982428,0.26534098,656.5,655.44,1.67115913]
[1751260982724,0.26534098,656.5,655.45,1.67115913]
[1751260982928,0.26534098,656.5,655.46,1.67115913]
[1751260983125,0.26534098,656.5,655.47,1.67115913]
[1751260983326,0.26534098,656.5,655.48,1.67115913]
[1751260983526,0.26534098,656.5,655.49,1.67115913]
[1751260983730,0.26534098,656.5,655.5,1.1100354]
[1751260984029,0.26534098,656.5,655.51,1.1100354]
[1751260984328,0.26534098,656.5,655.52,1.1100354]
[1751260984524,0.26534098,656.5,655.53,1.1100354]
[1751260984728,0.26534098,656.5,655.54,1.1100354]
[1751260984926,0.26534098,656.5,655.55,1.1100354]
[1751260985129,0.26534098,656.5,655.4,3.589]
[1751260985326,0.26534098,656.5,655.41,1.6713825]
[1751260985526,0.26534098,656.5,655.4,3.589]
[1751260985527,0.26534098,656.5,655.42,1.6713825]
[1751260985833,0.26534098,656.5,655.43,1.6713825]
[1751260986030,0.26534098,656.5,655.44,1.6713825]
[1751260986227,0.26534098,656.5,655.45,1.6713825]
[1751260986530,0.26534098,656.5,655.46,1.6713825]
[1751260986729,0.26534098,656.5,655.47,1.6713825]
[1751260987027,0.26534098,656.5,655.48,1.6713825]
[1751260987232,0.26534098,656.5,655.49,1.6713825]
[1751260987431,0.26534098,656.5,655.5,1.1101728]
[1751260987732,0.26534098,656.5,655.51,1.1101728]
[1751260988031,0.26534098,656.5,655.52,1.1101728]
[1751260988233,0.26534098,656.5,655.53,1.1101728]
[1751260988434,0.26534098,656.5,655.54,1.1101728]
[1751260988634,0.26534098,656.5,655.55,1.1101728]
[1751260988835,0.26534098,656.5,655.47,2.057]
[1751260989035,0.26534098,656.5,655.48,1.1104634]
[1751260989331,0.26534098,656.5,655.49,1.1104634]
[1751260989531,0.26534098,656.5,655.5,1.1104634]
[1751260989730,0.26534098,656.5,655.51,1.1104634]
[1751260990034,0.26534098,656.5,655.52,1.1104634]
[1751260990229,0.26534098,656.5,655.53,1.1104634]
[1751260990429,3.7808272,656.42,655.54,1.1104634]
[1751260990629,3.7808272,656.42,655.55,1.1104634]
[1751260990835,3.7808272,656.4,655.52,3.394]
[1751260991032,3.7808272,656.4,655.53,1.110464]
[1751260991236,3.7808272,656.4,655.52,3.394]
[1751260991434,3.7808272,656.37,655.52,3.394]
[1751260993342,3.7808272,656.36,655.52,3.394]
[1751260994537,3.7808272,656.42,655.52,3.394]
[1751260997141,3.7808272,656.37,655.52,3.394]
[1751260998240,4.04616818,656.5,655.52,3.394]
[1751261001239,4.04616818,656.5,655.53,1.11045182]
[1751261001539,0.26534098,656.5,655.52,3.394]
[1751261001742,0.26534098,656.5,655.53,1.1104505]
[1751261001941,0.26534098,656.5,655.52,3.394]
[1751261002138,0.26534098,656.5,655.53,1.1104505]
[1751261002441,0.26534098,656.5,655.52,3.394]
[1751261002640,0.26534098,656.5,655.53,1.1104266]
[1751261002942,0.26534098,656.5,655.52,3.394]
[1751261003140,0.26534098,656.5,655.53,1.1104266]
[1751261003340,0.26534098,656.5,655.52,3.394]
[1751261003539,0.26534098,656.5,655.53,1.1104048]
[1751261003841,0.26534098,656.5,655.52,3.394]
[1751261004041,0.26534098,656.5,655.53,1.1104048]
[1751261004242,0.26534098,656.5,655.52,3.394]
[1751261004439,3.7808272,656.49,655.53,1.1103848]
[1751261004643,3.7808272,656.49,655.52,3.394]
[1751261004841,3.7808272,656.49,655.53,1.1103848]
[1751261005144,3.7808272,656.49,655.52,3.394]
[1751261005342,3.7808272,656.49,655.53,1.110369]
[1751261005541,3.7808272,656.49,655.52,3.394]
[1751261005742,3.7808272,656.49,655.53,1.1103662]
[1751261005943,3.7808272,656.49,655.52,3.394]
[1751261006140,3.7808272,656.49,655.53,1.1103662]
[1751261006342,3.7808272,656.49,655.52,3.394]
[1751261006542,0.26534098,656.5,655.53,1.1103499]
[1751261006840,0.26534098,656.5,655.52,3.394]
[1751261007145,0.26534098,656.5,655.53,1.1103499]
[1751261007444,0.26534098,656.5,655.52,3.394]
[1751261007641,0.26534098,656.5,655.53,1.1103351]
[1751261007946,0.26534098,656.5,655.52,3.394]
[1751261008446,0.26534098,656.5,655.29,1.1401384]
[1751261008742,0.26534098,656.5,655.3,1.1103217]
[1751261008949,0.26534098,656.5,655.31,1.67172182]
[1751261009145,0.26534098,656.5,655.32,1.67172182]
[1751261009443,0.26534098,656.5,655.33,1.67172182]
[1751261009643,0.26534098,656.5,655.34,1.67172182]
[1751261009841,0.26534098,656.5,655.35,1.67172182]
[1751261010045,0.26534098,656.5,655.36,1.67172182]
[1751261010242,0.26534098,656.5,655.37,1.67172182]
[1751261010442,0.26534098,656.5,655.38,1.67172182]
[1751261010741,0.26534098,656.5,655.39,1.67172182]
[1751261010946,0.26534098,656.5,655.4,1.67172182]
[1751261011143,0.26534098,656.5,655.41,1.67172182]
[1751261011347,0.26534098,656.5,655.42,1.67172182]
[1751261011548,0.26534098,656.5,655.43,1.67172182]
[1751261011749,0.26534098,656.5,655.44,0.56140012]
[1751261012049,0.26534098,656.5,655.45,0.56140012]
[1751261012250,0.26534098,656.5,655.42,2.285]
[1751261012447,0.26534098,656.5,655.43,0.56140998]
[1751261012650,0.26534098,656.5,655.44,0.56140998]
[1751261012851,0.26534098,656.5,655.45,0.56140998]
[1751261013145,0.26534098,656.5,655.42,2.285]
[1751261013350,3.7808272,656.48,655.42,2.285]
[1751261014354,3.7808272,656.49,655.42,2.285]
[1751261015349,4.04616818,656.5,655.42,2.285]
[1751261016454,3.7808272,656.33,655.42,2.285]
[1751261017556,3.7808272,656.35,655.42,2.285]
[1751261018456,3.7808272,656.36,655.42,2.285]
[1751261018957,3.7808272,656.39,655.42,2.285]
[1751261019454,3.7808272,656.4,655.42,2.285]
[1751261020559,3.7808272,656.41,655.42,2.285]
[1751261021159,3.7808272,656.4,655.42,2.285]
[1751261021654,3.7808272,656.37,655.42,2.285]
[1751261023163,3.7808272,656.38,655.42,2.285]
[1751261025761,3.7808272,656.39,655.42,2.285]
[1751261026263,3.7808272,656.38,655.42,2.285]
[1751261027268,3.7808272,656.37,655.42,2.285]
[1751261027867,0.26534098,656.5,655.42,2.285]
[1751261037574,3.7808272,656.42,655.42,2.285]
[1751261038072,3.7808272,656.43,655.42,2.285]
[1751261040172,3.7808272,656.42,655.42,2.285]
[1751261041674,3.7808272,656.39,655.42,2.285]
[1751261042178,3.7808272,656.33,655.42,2.285]
[1751261042378,3.7808272,656.33,655.43,2.406]
[1751261044780,3.7808272,656.34,655.43,2.406]
[1751261045281,3.7808272,656.33,655.43,2.406]
[1751261046278,3.7808272,656.36,655.43,2.406]
[1751261047285,3.7808272,656.45,655.43,2.406]
[1751261047781,0.26544926,656.13,655.43,2.406]
[1751261048084,3.7808272,656.38,655.43,2.406]
[1751261049286,0.2654442,656.15,655.43,2.406]
[1751261053988,0.2654442,656.15,655.44,1.897]
[1751261067199,3.7808272,656.13,655.45,3.089]
[1751261068197,3.7808272,656.01,655.45,3.089]
[1751261068697,3.7808272,656.02,655.45,3.089]
[1751261069299,3.7808272,656.0,655.45,3.089]
[1751261069798,3.7808272,656.01,655.45,3.089]
[1751261070902,3.7808272,656.0,655.45,3.089]
[1751261071401,3.7808272,655.96,655.45,3.089]
[1751261072397,3.7808272,655.97,655.45,3.089]
[1751261073500,3.7808272,655.98,655.45,3.089]
[1751261074504,3.7808272,655.99,655.45,3.089]
[1751261075602,3.7808272,656.0,655.45,3.089]
[1751261076104,0.2654442,656.15,655.45,3.089]
[1751261084114,0.2654442,656.15,655.46,2.212]
[1751261085411,3.7808272,656.12,655.46,2.212]
[1751261086516,3.7808272,656.07,655.46,2.212]
[1751261088117,3.7808272,656.13,655.46,2.212]
[1751261089819,3.7808272,656.12,655.46,2.212]
[1751261090021,3.7808272,656.12,655.47,2.313]
[1751261090217,3.7808272,656.11,655.47,2.313]
[1751261091722,0.2654442,656.15,655.47,2.313]
[1751261105736,3.7808272,656.11,655.47,2.313]
[1751261106236,3.7808272,656.04,655.47,2.313]
[1751261106438,3.7808272,656.04,655.48,2.559]
[1751261106940,3.7808272,656.05,655.48,2.559]
[1751261107945,3.7808272,656.04,655.48,2.559]
[1751261108941,3.7808272,655.97,655.48,2.559]
[1751261110639,3.7808272,655.96,655.48,2.559]
[1751261113243,0.2654442,656.15,655.48,2.559]
[1751261113647,0.2654442,656.15,655.49,2.291]
[1751261123050,3.7808272,656.03,655.49,2.291]
[1751261126162,3.7808272,655.9,655.49,2.291]
[1751261132267,3.7808272,655.94,655.49,2.291]
[1751261133471,3.7808272,656.08,655.49,2.291]
[1751261134373,3.7808272,656.09,655.49,2.291]
[1751261135376,3.7808272,656.1,655.49,2.291]
[1751261137072,0.2654442,656.15,655.49,2.291]
[1751261139474,0.2654442,656.15,655.48,2.559]
[1751261142474,0.2654442,656.15,655.49,3.543]
[1751261148981,0.2654442,656.15,655.5,1.969]
[1751261152090,4.0462714,656.15,655.5,1.969]
[1751261153889,3.7808272,656.14,655.5,1.969]
[1751261154283,3.7808272,656.13,655.5,1.969]
[1751261155692,3.7808272,656.12,655.5,1.969]
[1751261158390,0.2654442,656.15,655.5,1.969]
[1751261159491,3.7808272,656.12,655.5,1.969]
[1751261160391,3.7808272,656.09,655.5,1.969]
[1751261160894,3.7808272,656.11,655.5,1.969]
[1751261162190,3.7808272,656.09,655.5,1.969]
[1751261162495,3.7808272,656.07,655.5,1.969]
[1751261163194,3.7808272,656.13,655.5,1.969]
[1751261163394,3.7808272,656.13,655.51,2.407]
[1751261163594,3.7808272,656.14,655.51,2.407]
[1751261164193,0.2654442,656.15,655.51,2.407]
[1751261174004,3.7808272,656.09,655.51,2.407]
[1751261174604,0.2654442,656.15,655.51,2.407]
[1751261187712,3.7808272,656.13,655.51,2.407]
[1751261189319,3.7808272,656.1,655.51,2.407]
[1751261190317,0.2654442,656.15,655.51,2.407]
[1751261190521,0.2654442,656.15,655.5,1.969]
[1751261193223,0.2654442,656.15,655.51,3.554]
[1751261194525,3.7808272,656.14,655.51,3.554]
[1751261194920,3.7808272,656.12,655.51,3.554]
[1751261200325,3.7808272,655.91,655.51,3.554]
[1751261203727,3.7808272,655.9,655.51,3.554]
[1751261211827,3.7808272,655.9,655.52,1.97]
[1751261212231,5.293158,656.11,655.52,1.97]
[1751261212630,0.2654442,656.15,655.52,1.97]
[1751261219939,0.2654442,656.15,655.53,2.673]
[1751261221940,3.7808272,656.01,655.53,2.673]
[1751261222447,3.7808272,656.02,655.53,2.673]
[1751261225246,3.7808272,656.01,655.53,2.673]
[1751261228251,3.7808272,655.99,655.53,2.673]
[1751261228750,3.7808272,655.95,655.53,2.673]
[1751261230652,3.7808272,655.95,655.53,0.5798256]
[1751261230848,3.7808272,655.89,655.53,0.5798256]
[1751261231950,3.7808272,655.92,655.53,0.5798256]
[1751261232456,3.7808272,655.93,655.53,0.5798256]
[1751261234557,3.7808272,656.04,655.53,0.5798256]
[1751261235554,3.7808272,656.03,655.53,0.5798256]
[1751261236557,3.7808272,656.05,655.53,0.5798256]
[1751261238254,3.7808272,656.02,655.53,0.5798256]
[1751261244371,3.7808272,655.97,655.53,0.5798256]
[1751261244966,3.7808272,655.97,655.52,1.97]
[1751261246667,3.7808272,655.92,655.52,1.97]
[1751261247565,3.7808272,655.96,655.52,1.97]
[1751261248565,3.7808272,655.97,655.52,1.97]
[1751261249372,0.26549888,655.86,655.52,1.97]
[1751261270885,0.26549888,655.86,654.93,4.1249898]
[1751261271188,0.26549888,655.86,654.94,1.70075116]
[1751261271388,0.26549888,655.86,654.95,1.70075116]
[1751261271688,0.26549888,655.86,654.96,1.70075116]
[1751261271988,0.26549888,655.86,654.97,1.70075116]
[1751261272183,0.26549888,655.86,654.98,1.1382182]
[1751261272387,0.26549888,655.86,654.99,1.1382182]
[1751261272584,0.26549888,655.86,655.0,1.1382182]
[1751261272787,0.26549888,655.86,655.01,1.1382182]
[1751261272986,0.26549888,655.86,655.02,1.1382182]
[1751261273185,0.26549888,655.86,655.03,1.1382182]
[1751261273390,0.26549888,655.86,655.04,1.1382182]
[1751261273590,0.26549888,655.86,655.05,1.1382182]
[1751261273787,0.26549888,655.86,655.06,1.1382182]
[1751261274091,0.26549888,655.86,655.07,3.7712182]
[1751261274292,0.26549888,655.86,655.08,1.1382182]
[1751261274490,0.26549888,655.86,655.09,1.1382182]
[1751261274691,0.26549888,655.86,655.07,2.633]
[1751261274692,0.26549888,655.86,655.1,1.1382182]
[1751261274892,0.26549888,655.86,655.11,1.1382182]
[1751261275088,0.26549888,655.86,655.12,1.1382182]
[1751261275289,0.26549888,655.86,655.07,2.633]
[1751261275290,0.26549888,655.86,655.13,1.1382182]
[1751261275494,0.26549888,655.86,655.07,2.633]
[1751261275789,0.26549888,655.86,655.08,1.1382852]
[1751261276094,0.26549888,655.86,655.09,1.1382852]
[1751261276294,0.26549888,655.86,655.1,1.1382852]
[1751261276589,0.26549888,655.86,655.11,1.1382852]
[1751261276789,0.26549888,655.86,655.12,1.1382852]
[1751261276991,0.26549888,655.86,655.13,1.1382852]
[1751261277192,0.26549888,655.86,655.07,2.633]